bitfinex/quotes_ETHUSD_20241104
["timestamp","ask_amount","ask_price","bid_price","bid_amount"]
[1730757823838,4.19376,2384.5,2383.8,4.19486]
[1730757824405,0.6425,2384.6,2383.6,4.19529]
[1730757824560,4.19428,2384.2,2383.6,4.19529]
[1730757824900,4.19406,2384.4,2383.7,0.08388856]
[1730757825058,4.1941,2384.3,2383.7,0.42791286]
[1730757825404,4.19406,2384.4,2383.7,0.51180142]
[1730757825556,4.19411,2384.3,2383.7,4.70684142]
[1730757825756,0.6425,2384.6,2383.3,4.19582]
[1730757825757,4.19481,2383.9,2383.3,4.19582]
[1730757825961,0.6425,2384.0,2383.4,0.0838965]
[1730757826272,4.83625,2384.5,2383.9,4.19466]
[1730757826465,4.8363,2384.5,2383.7,4.19505]
[1730757826669,4.19426,2384.3,2383.7,4.19505]
[1730757826877,4.19426,2384.3,2383.8,4.19497]
[1730757827092,4.19426,2384.3,2383.7,4.19505]
[1730757827267,8.38846,2384.3,2383.7,4.19505]
[1730757827467,4.1942,2384.3,2383.7,5.034099]
[1730757828107,4.19428,2384.2,2383.7,5.034099]
[1730757828288,4.19447,2384.1,2383.2,3.7701]
[1730757828491,4.19447,2384.1,2383.6,4.1953]
[1730757828803,0.04585146,2384.0,2383.6,4.1953]
[1730757828958,0.04585146,2384.0,2383.7,0.08389318]
[1730757829155,0.04585146,2384.0,2383.8,4.19487]
[1730757829403,0.6425,2384.5,2383.9,5.11767489]
[1730757829563,0.04638773,2383.9,2383.7,4.195]
[1730757829758,4.19407,2384.4,2383.6,4.19529]
[1730757829759,4.19432,2384.2,2383.6,4.19529]
[1730757829958,0.04638773,2383.8,2383.6,4.19529]
[1730757830183,4.19432,2384.2,2383.6,4.19529]
[1730757830369,4.19432,2384.2,2383.2,0.7701]
[1730757830370,4.19403,2384.4,2383.8,4.19485]
[1730757830573,4.19431,2384.2,2383.6,4.19524]
[1730757830789,3.0,2384.3,2383.4,4.19561]
[1730757830961,3.0,2384.3,2383.4,8.39119]
[1730757830962,4.19473,2384.0,2383.4,8.39119]
[1730757831163,4.19528,2383.7,2383.1,4.19621]
[1730757831384,4.19528,2383.7,2383.0,4.25919234]
[1730757831385,4.19542,2383.6,2383.0,4.25919234]
[1730757831569,0.6425,2384.2,2383.0,4.25919234]
[1730757831570,4.19503,2383.8,2383.2,4.19593]
[1730757831780,4.19503,2383.8,2383.1,4.19614]
[1730757832011,4.19534,2383.6,2383.1,4.19614]
[1730757832227,8.39019,2383.8,2383.2,4.27990628]
[1730757832428,4.19472,2384.0,2383.3,4.19572]
[1730757832585,4.19472,2384.0,2383.4,0.08389615]
[1730757832916,4.19472,2384.0,2383.4,4.27947615]
[1730757833132,4.19472,2384.0,2383.4,8.47503615]
[1730757833133,4.19463,2384.0,2383.4,8.47503615]
[1730757833327,3.0,2384.1,2383.4,4.19556]
[1730757833512,4.19493,2383.9,2383.4,4.19556]
[1730757833836,3.0,2384.1,2383.5,4.19548]
[1730757833982,4.19465,2384.0,2383.6,0.08389393]
[1730757834579,4.19456,2384.1,2383.6,4.9918]
[1730757834785,4.19465,2384.0,2383.6,0.7966]
[1730757835028,4.8369,2384.2,2383.6,4.19525]
[1730757835184,9.0313,2384.2,2383.6,5.034317]
[1730757835722,4.8369,2384.2,2383.6,5.034307]
[1730757835922,0.6425,2384.2,2383.7,4.19503]
[1730757836089,4.83687,2384.2,2383.6,4.19523]
[1730757836425,4.83687,2384.2,2383.7,4.19501]
[1730757836624,4.19454,2384.1,2383.6,4.19523]
[1730757837003,4.83687,2384.2,2383.6,4.19523]
[1730757837227,0.6425,2384.2,2383.4,4.19554]
[1730757837439,4.19455,2384.1,2383.4,4.19568]
[1730757837596,4.19455,2384.1,2383.4,4.19555]
[1730757837802,4.1949,2383.9,2383.4,4.19555]
[1730757838038,0.0458123,2384.0,2383.5,0.08389415]
[1730757838240,0.04581795,2383.8,2383.5,0.59149857]
[1730757838530,4.19465,2384.0,2383.5,0.59149857]
[1730757838835,0.04581795,2383.9,2383.6,4.19532]
[1730757839134,0.6425,2384.2,2383.7,4.19515]
[1730757839295,0.04565992,2384.1,2383.7,0.88979944]
[1730757839517,4.24016992,2384.1,2383.6,4.19524]
[1730757839760,4.24025992,2384.1,2383.6,4.19524]
[1730757839921,4.19465,2384.0,2383.5,0.50760442]
[1730757840120,4.19437,2384.2,2383.5,4.70298442]
[1730757840322,4.24019992,2384.1,2383.5,4.19533]
[1730757840519,3.04565992,2384.1,2383.1,4.19608]
[1730757840761,4.19525,2383.7,2383.2,4.04175684]
[1730757840966,4.19492,2383.9,2383.4,4.19564]
[1730757841132,4.19419,2384.3,2383.6,0.7714]
[1730757841333,4.19438,2384.2,2383.6,4.9666]
[1730757841538,4.19438,2384.2,2383.7,4.19506]
[1730757841738,4.83654,2384.4,2383.8,4.19486]
[1730757841935,9.03056,2384.4,2383.8,4.19481]
[1730757842133,4.1941,2384.3,2383.6,1.26806]
[1730757842340,4.19439,2384.2,2383.6,5.4633]
[1730757842550,4.1941,2384.3,2383.8,4.19496]
[1730757842824,4.19349,2384.7,2384.0,4.19449]
[1730757843154,4.1941,2384.3,2383.8,3.965826]
[1730757843373,4.19383,2384.5,2383.9,4.19467]
[1730757843374,4.19398,2384.4,2383.9,4.19467]
[1730757843661,0.04561476,2384.2,2384.1,4.19445]
[1730757843863,4.19333,2384.8,2384.2,4.19424]
[1730757844066,4.19419,2384.3,2383.6,5.46335]
[1730757844276,4.19384,2384.5,2383.9,4.19463]
[1730757844476,0.10197643,2384.7,2383.7,4.19505]
[1730757844767,4.1943,2384.2,2383.7,4.19505]
[1730757845261,0.04561476,2384.1,2383.8,4.2787443]
[1730757845763,4.83511,2385.2,2384.6,4.19344]
[1730757845968,0.04561476,2385.1,2384.7,0.87755168]
[1730757846169,0.04561476,2385.1,2385.0,4.19287]
[1730757846329,4.19212,2385.5,2385.0,4.19287]
[1730757846672,0.04561476,2385.4,2385.1,4.27643778]
[1730757846838,4.23777476,2385.4,2384.9,4.19291]
[1730757847250,4.19274,2385.1,2384.7,0.7937]
[1730757847448,4.19274,2385.1,2384.6,4.19356]
[1730757847877,0.04561476,2385.0,2384.9,4.19304]
[1730757848044,0.04561476,2385.0,2384.8,4.19321]
[1730757848239,4.19233,2385.4,2384.6,0.921558]
[1730757848240,0.6834836,2385.7,2384.9,4.19302]
[1730757848472,4.192,2385.5,2384.6,0.921558]
[1730757848787,4.192,2385.5,2384.4,3.7882]
[1730757848788,8.38412,2385.5,2384.8,4.19315]
[1730757848943,0.6834836,2385.7,2384.4,7.98207]
[1730757849143,0.6834836,2385.7,2385.1,0.7882]
[1730757849341,0.0409836,2385.7,2385.5,4.19196]
[1730757849543,0.0409836,2385.7,2385.6,4.2756346]
[1730757849948,0.0409836,2385.7,2385.3,4.19223]
[1730757850161,4.19198,2385.6,2385.1,9.17334]
[1730757850369,0.6834836,2385.7,2384.9,4.19292]
[1730757850703,4.19191,2385.6,2385.0,4.19286]
[1730757850880,4.19191,2385.6,2384.9,4.19292]
[1730757851088,4.19219,2385.4,2385.0,4.19284]
[1730757851438,4.19199,2385.5,2385.0,4.19284]
[1730757851642,0.6834836,2385.7,2385.1,4.27650965]
[1730757851880,0.6834836,2385.7,2385.1,0.08383965]
[1730757852097,0.0409836,2385.7,2385.0,4.19273]
[1730757852272,0.0409836,2385.7,2385.1,8.46909611]
[1730757852475,4.2327336,2385.7,2384.9,4.19297]
[1730757852659,0.0409836,2385.7,2385.0,4.27656821]
[1730757852857,0.0409836,2385.7,2385.0,0.08383821]
[1730757853062,0.0409836,2385.7,2385.0,4.27667821]
[1730757853305,0.0409836,2385.7,2385.1,4.19267]
[1730757853514,0.0409836,2385.7,2385.2,0.08383896]
[1730757854304,0.0409836,2385.7,2385.3,4.19226]
[1730757854460,0.0409836,2385.7,2385.5,4.19198]
[1730757854904,0.04557112,2385.6,2385.5,4.19198]
[1730757855103,0.04557112,2385.6,2385.4,0.08382887]
[1730757855312,0.04557112,2385.6,2385.3,4.19226]
[1730757856089,0.04557112,2385.6,2385.4,4.19203]
[1730757856272,0.04557112,2385.6,2385.5,0.08382902]
[1730757856474,0.04557112,2385.6,2385.5,5.56679]
[1730757856795,0.0409836,2385.7,2385.6,4.19181]
[1730757857404,0.0409836,2385.7,2385.6,7.74181]
[1730757857770,3.6e-06,2385.7,2385.6,8.59921426]
[1730757857982,3.6e-06,2385.7,2385.6,8.51541]
[1730757858221,0.7159673,2387.1,2386.7,4.18987]
[1730757858382,0.7159673,2387.1,2386.3,0.7736]
[1730757858383,4.18937,2387.0,2386.3,9.15464]
[1730757858607,4.23527398,2387.0,2386.4,4.19037]
[1730757858810,4.23527398,2387.0,2386.4,4.1904]
[1730757859012,4.33725041,2387.0,2386.4,4.1904]
[1730757859314,0.04590398,2387.0,2386.4,4.1904]
[1730757859616,0.04590398,2387.0,2386.3,4.96407]
[1730757859923,0.04590398,2387.0,2386.1,4.19081]
[1730757859924,4.18999,2386.7,2386.1,4.19081]
[1730757860073,4.18999,2386.7,2386.2,0.08380606]
[1730757860411,0.04686307,2386.6,2386.2,0.08380606]
[1730757860569,0.04686307,2386.6,2385.9,4.19121]
[1730757860770,0.1488395,2386.6,2386.1,4.19083]
[1730757861074,0.04686307,2386.6,2386.1,4.19077]
[1730757861695,0.6425,2386.5,2386.0,4.1911]
[1730757861914,4.29238643,2386.4,2385.6,4.1917]
[1730757862135,4.33921003,2386.4,2385.8,4.19145]
[1730757862333,4.1906,2386.3,2385.9,0.08381423]
[1730757862648,0.6425,2386.5,2386.0,4.19108]
[1730757862805,0.0468236,2386.2,2385.8,4.19136]
[1730757863005,4.19043,2386.4,2385.8,8.38272]
[1730757863205,0.0468236,2386.1,2385.8,4.19136]
[1730757863445,4.19043,2386.4,2385.8,4.19136]
[1730757863613,0.0468236,2386.0,2385.8,4.19136]
[1730757863820,0.6425,2386.5,2385.8,4.19136]
[1730757864022,0.6425,2386.5,2385.9,4.27500284]
[1730757864317,4.83277,2386.5,2385.9,4.19126]
[1730757864705,4.83277,2386.5,2386.0,0.08381285]
[1730757864936,4.83277,2386.5,2385.8,4.19136]
[1730757865143,4.83277,2386.5,2386.0,4.19099]
[1730757865144,0.6425,2386.5,2386.0,4.19099]
[1730757865704,4.18971,2386.8,2386.2,4.19066]
[1730757865910,0.10197643,2386.7,2386.2,8.38132]
[1730757866218,0.10197643,2386.7,2386.2,4.19064]
[1730757866412,4.83207,2386.9,2386.2,4.19064]
[1730757866413,4.29182643,2386.8,2386.2,4.19064]
[1730757867324,4.29178643,2386.8,2386.2,8.3813]
[1730757867521,4.29178643,2386.8,2386.3,4.19052]
[1730757867720,4.29178643,2386.8,2386.2,4.19064]
[1730757867924,4.29178643,2386.8,2386.0,1.1815801]
[1730757868113,4.29171643,2386.8,2385.8,0.55]
[1730757868329,4.93401643,2386.9,2386.2,4.19066]
[1730757868518,4.93401643,2386.9,2386.3,4.19058]
[1730757868926,0.6425,2386.9,2386.4,0.08380167]
[1730757869139,0.6425,2386.9,2386.5,4.19008]
[1730757869342,0.0734673,2387.1,2386.7,4.18988]
[1730757869545,0.0734673,2387.1,2386.2,4.19074]
[1730757869546,4.18935,2387.0,2385.9,0.7589]
[1730757869755,4.18996,2386.7,2386.1,4.19084]
[1730757869919,4.29164643,2386.9,2386.3,4.19058]
[1730757869920,4.18983,2386.8,2386.3,4.19058]
[1730757870244,8.37992,2386.7,2386.1,4.19084]
[1730757870454,0.6425,2386.6,2386.1,4.19084]
[1730757870909,0.6425,2386.6,2386.3,4.19049]
[1730757871116,4.83257,2386.6,2386.1,4.1908]
[1730757871309,4.83257,2386.6,2386.0,4.19107]
[1730757871310,4.19025,2386.5,2386.0,4.19107]
[1730757871515,4.83257,2386.6,2386.0,4.19107]
[1730757871516,9.02277,2386.6,2386.0,4.19107]
[1730757871740,4.83257,2386.6,2386.1,4.19093]
[1730757871942,0.10197643,2386.5,2385.9,4.95006]
[1730757872150,0.10197643,2386.5,2385.5,4.19185]
[1730757872448,0.10197643,2386.5,2385.6,0.0838253]
[1730757872449,4.19068,2386.3,2385.6,0.0838253]
[1730757872646,4.82905,2386.4,2385.9,4.19115]
[1730757872832,4.82899,2386.4,2385.9,4.19115]
[1730757873036,0.04672211,2386.3,2385.9,4.19115]
[1730757873220,4.19077,2386.2,2385.7,4.19159]
[1730757873420,4.23739211,2386.3,2385.8,4.27512902]
[1730757873623,0.04659238,2386.1,2385.8,4.27512902]
[1730757873828,4.19067,2386.3,2385.8,4.19135]
[1730757874055,0.04659238,2386.0,2385.9,4.19129]
[1730757874232,0.6385,2386.4,2386.0,4.19099]
[1730757874411,4.18963,2386.9,2386.0,4.19099]
[1730757874412,4.2627773,2387.1,2386.1,0.08381014]
[1730757874615,0.10197643,2387.0,2386.2,4.19066]
[1730757874811,4.18998,2386.7,2386.2,4.19066]
[1730757875049,4.29168643,2386.8,2386.3,4.1905]
[1730757875232,4.18963,2386.9,2386.4,4.1904]
[1730757875433,8.37928,2386.9,2386.4,4.1904]
[1730757875642,4.29177643,2386.8,2386.3,4.19057]
[1730757875823,4.19021,2386.6,2386.1,4.19093]
[1730757876213,4.82854,2386.7,2386.1,4.19093]
[1730757876450,4.82854,2386.7,2386.2,4.1906]
[1730757876749,4.19027,2386.5,2385.9,4.19117]
[1730757877111,4.1905,2386.4,2385.9,4.19117]
[1730757877315,4.1905,2386.4,2386.0,0.08381281]
[1730757877523,4.1905,2386.4,2385.9,3.713587]
[1730757877948,4.1905,2386.4,2385.9,7.904787]
[1730757878150,0.10197643,2386.4,2385.6,0.7875]
[1730757878453,0.6385,2386.2,2385.8,4.19144]
[1730757879114,4.82935,2386.2,2385.7,4.1915]
[1730757879314,4.19096,2386.1,2385.5,4.19186]
[1730757879539,0.10197643,2386.1,2385.0,0.8390975]
[1730757879738,4.1915,2385.8,2385.3,4.19221]
[1730757880256,0.6385,2386.5,2386.1,4.19092]
[1730757880427,0.6385,2386.5,2385.5,0.7708]
[1730757880428,0.0556276,2386.3,2386.2,4.1907]
[1730757881069,0.10206202,2386.3,2386.2,4.1907]
[1730757881963,0.0556276,2386.3,2386.2,4.27450271]
[1730757882179,0.10206202,2386.3,2386.1,4.19081]
[1730757882373,0.10206202,2386.3,2386.2,4.19076]
[1730757884178,0.10206202,2386.3,2386.2,5.108467]
[1730757884329,0.10206202,2386.3,2386.2,5.19226703]
[1730757884330,0.0556276,2386.3,2386.2,5.19226703]
[1730757884664,0.0556276,2386.3,2386.2,8.74226703]
[1730757884825,0.0556276,2386.3,2386.2,9.479567]
[1730757885237,0.0556276,2386.3,2386.2,8.929567]
[1730757885438,0.0556276,2386.3,2386.2,5.99243948]
[1730757885669,0.0556276,2386.3,2386.2,6.07623131]
[1730757885827,0.0556276,2386.3,2386.2,5.99243948]
[1730757886029,0.0556276,2386.3,2386.2,5.929567]
[1730757886767,0.0556276,2386.3,2386.2,6.01335895]
[1730757887068,0.0556276,2386.3,2386.2,5.929567]
[1730757887262,0.0556276,2386.3,2386.2,4.19076]
[1730757887770,0.10247938,2386.3,2386.2,4.19076]
[1730757887927,0.10247938,2386.3,2386.2,4.27456051]
[1730757888133,0.0556276,2386.3,2386.2,4.27456051]
[1730757888771,0.0556276,2386.3,2386.2,4.19076]
[1730757888977,0.0556276,2386.3,2386.2,5.028917]
[1730757890671,0.0556276,2386.3,2386.2,5.11271761]
[1730757890975,0.10243427,2386.3,2386.1,4.19092]
[1730757891139,0.10243427,2386.3,2386.1,4.19082]
[1730757891645,0.10243427,2386.3,2386.1,8.38165]
[1730757892374,0.10243427,2386.3,2386.1,4.19082]
[1730757892668,0.10243427,2386.3,2386.2,4.19076]
[1730757893434,0.10243427,2386.3,2386.2,4.27456402]
[1730757893657,0.10243427,2386.3,2386.2,5.12110242]
[1730757893862,0.10243427,2386.3,2386.2,5.0372984]
[1730757894069,0.0556276,2386.3,2386.2,5.90429369]
[1730757894279,0.0556276,2386.3,2386.2,5.12109369]
[1730757894600,4.19251,2385.3,2384.6,5.00943]
[1730757894875,4.19218,2385.4,2384.8,4.19308]
[1730757895076,0.68522773,2385.2,2384.7,4.19339]
[1730757895276,0.6385,2385.2,2384.8,4.19313]
[1730757895478,0.04641186,2385.1,2384.7,4.19339]
[1730757895654,0.04641186,2385.1,2384.6,0.8159]
[1730757895842,0.04641186,2385.1,2383.9,0.93468214]
[1730757895843,4.34401002,2385.1,2384.5,4.19364]
[1730757896043,4.34401002,2385.1,2384.4,4.1939]
[1730757896044,4.19305,2384.9,2384.4,4.1939]
[1730757896241,0.04641186,2385.1,2384.6,4.19343]
[1730757896487,0.04570095,2384.8,2384.6,4.19343]
[1730757896683,0.6385,2385.2,2384.7,4.25918519]
[1730757896978,0.6385,2385.2,2384.8,4.19304]
[1730757897147,0.6385,2385.2,2384.7,4.19337]
[1730757897347,0.6385,2385.2,2384.7,4.19327]
[1730757897654,0.6385,2385.2,2384.7,8.38658]
[1730757898249,0.6385,2385.2,2384.8,4.19318]
[1730757898801,0.6385,2385.2,2384.5,4.19361]
[1730757899081,0.6385,2385.2,2384.7,4.19328]
[1730757899268,0.6385,2385.2,2384.7,4.19339]
[1730757899580,0.74331874,2385.2,2384.7,4.19339]
[1730757900284,0.6385,2385.2,2384.8,4.19322]
[1730757900485,0.6385,2385.2,2384.3,4.19408]
[1730757900689,4.86398627,2385.6,2385.0,4.19277]
[1730757900690,0.6385,2385.5,2385.0,4.19277]
[1730757900853,0.1048087,2385.4,2385.0,4.19277]
[1730757901047,0.1048087,2385.4,2384.9,4.19296]
[1730757901250,4.19259,2385.2,2384.6,4.19346]
[1730757901448,0.1048187,2385.2,2384.6,4.19346]
[1730757901691,0.6385,2385.0,2384.3,4.194]
[1730757901897,4.29795858,2384.9,2384.3,4.194]
[1730757902078,8.49113858,2384.9,2384.3,4.19394]
[1730757902265,0.6385,2385.0,2384.1,4.94982]
[1730757902470,0.6385,2384.5,2384.1,0.06583385]
[1730757902797,0.6385,2384.5,2384.1,4.26018739]
[1730757902952,0.04568966,2384.4,2384.1,8.45450739]
[1730757903148,0.04568966,2384.4,2384.1,4.19432]
[1730757903350,0.04568966,2384.4,2384.3,4.1941]
[1730757903656,4.83183,2384.8,2384.3,4.1941]
[1730757903859,0.04568966,2384.4,2384.3,4.25994397]
[1730757904112,0.6385,2385.1,2384.4,0.7555]
[1730757904390,4.19237,2385.3,2384.7,4.19329]
[1730757904590,5.56597107,2385.2,2384.7,4.19329]
[1730757904777,5.56597107,2385.2,2384.5,4.19362]
[1730757904778,4.19269,2385.1,2384.5,4.19362]
[1730757905112,1.37335107,2385.2,2383.8,4.19488]
[1730757905113,4.19375,2384.5,2383.8,4.19488]
[1730757905262,4.29835144,2384.7,2383.7,0.7555]
[1730757905602,4.83166,2384.9,2384.3,4.19401]
[1730757905768,0.6385,2384.9,2384.5,4.19365]
[1730757905966,0.6385,2384.9,2384.6,4.19348]
[1730757906284,0.6385,2384.9,2384.7,4.1933]
[1730757906593,0.10482583,2385.3,2384.9,4.19295]
[1730757906792,0.10482583,2385.3,2384.7,4.19327]
[1730757907091,4.19281,2385.1,2384.5,4.19362]
[1730757907330,4.2975282,2385.1,2384.6,4.19347]
[1730757907818,4.19289,2385.0,2384.5,4.19362]
[1730757908004,0.10482824,2384.9,2384.2,0.7841]
[1730757908313,4.19349,2384.7,2384.1,4.19436]
[1730757908511,0.10484628,2384.6,2383.9,0.8283]
[1730757908725,4.83227,2384.5,2384.0,8.38914]
[1730757908891,4.19395,2384.4,2383.9,5.02307]
[1730757909078,4.2990705,2384.3,2383.6,4.19522]
[1730757909280,4.2990705,2384.3,2383.5,0.831]
[1730757909281,4.19464,2384.0,2383.5,4.1955]
[1730757909517,0.1048692,2383.9,2383.4,4.19562]
[1730757909685,4.19546,2383.6,2383.0,4.19628]
[1730757910023,4.30035215,2383.6,2383.0,8.39258]
[1730757910176,0.10489215,2383.6,2382.8,5.00761]
[1730757910515,0.10489215,2383.6,2382.8,8.39323]
[1730757910516,4.19572,2383.4,2382.8,8.39323]
[1730757910680,0.74340525,2383.3,2382.8,4.19661]
[1730757911079,4.93930525,2383.3,2382.8,4.19661]
[1730757911819,4.19652,2383.0,2382.5,2.18496247]
[1730757912032,0.1049212,2382.9,2382.5,2.18496247]
[1730757912325,4.83524,2382.8,2382.5,2.18496247]
[1730757912531,4.94017539,2382.8,2382.5,2.18496247]
[1730757914419,7.95017539,2382.8,2382.5,2.18496247]
[1730757914618,7.84559,2382.6,2382.5,2.18496247]
[1730757914824,4.20762,2382.3,2382.2,4.80700871]
[1730757914978,4.94108267,2382.3,2382.2,4.80700871]
[1730757915491,0.74346267,2382.3,2382.2,4.80700871]
[1730757915820,0.6385,2382.3,2382.2,4.42271571]
[1730757915976,4.83612,2382.3,2382.2,4.42271571]
[1730757916302,4.94107647,2382.3,2382.2,4.42271571]
[1730757916619,4.94107647,2382.3,2381.6,4.19885]
[1730757916913,0.10495647,2382.3,2381.7,0.8241]
[1730757917085,4.30231257,2382.5,2381.9,4.19831]
[1730757917511,0.10494257,2382.5,2382.1,4.19796]
[1730757917885,4.30224257,2382.5,2381.9,4.19822]
[1730757918080,4.30224257,2382.5,2381.7,5.02267]
[1730757918081,4.23907733,2382.4,2381.7,5.02267]
[1730757918312,0.10494258,2382.3,2381.7,5.00680828]
[1730757918578,8.50033258,2382.3,2381.7,5.00680828]
[1730757918778,4.34442226,2382.2,2381.7,4.19857]
[1730757918978,0.14655226,2382.2,2381.7,4.19857]
[1730757919226,0.14655226,2382.2,2381.5,0.0597128]
[1730757919227,0.04159733,2382.2,2382.0,4.19814]
[1730757919389,0.10495493,2382.3,2381.8,4.19834]
[1730757919577,0.04159733,2382.2,2381.8,4.19834]
[1730757919780,0.04159733,2382.2,2381.8,8.39672]
[1730757920019,0.04159733,2382.2,2382.0,4.19814]
[1730757920223,0.10494563,2382.5,2382.0,4.19814]
[1730757920379,0.6385,2382.6,2382.2,4.1977]
[1730757920582,4.19651,2383.0,2382.4,4.19728]
[1730757920583,0.10494065,2382.7,2382.4,4.19728]
[1730757920813,0.10494065,2382.7,2382.1,4.19787]
[1730757920814,4.19699,2382.7,2382.1,4.19787]
[1730757920980,0.10493634,2382.6,2382.1,4.19787]
[1730757921176,0.10493634,2382.6,2382.2,4.1977]
[1730757921377,4.30194634,2382.7,2382.1,9.535348]
[1730757921629,0.10493634,2382.7,2382.3,4.19762]
[1730757922116,0.10493634,2382.7,2382.3,4.19758]
[1730757922290,0.10493634,2382.7,2382.1,5.337468]
[1730757922496,0.6385,2382.9,2381.8,0.839672]
[1730757922497,4.19756,2382.4,2381.8,4.19849]
[1730757922695,4.30257485,2382.3,2381.8,4.19849]
[1730757923192,4.30257485,2382.3,2381.8,4.19841]
[1730757923393,4.30257485,2382.3,2381.7,4.19858]
[1730757923612,4.30257485,2382.3,2381.7,4.26469984]
[1730757923792,4.30257485,2382.3,2381.8,4.19839]
[1730757924495,4.30257485,2382.3,2381.8,4.1984]
[1730757925281,4.30257485,2382.3,2381.7,4.63102126]
[1730757925627,4.19866,2381.8,2381.5,0.0597128]
[1730757925938,4.19885,2381.6,2381.5,0.0097128]
[1730757926220,0.6385,2381.6,2381.5,0.0097128]
[1730757926377,0.68025582,2381.6,2381.5,0.0097128]
[1730757926827,4.87910582,2381.6,2381.5,0.0097128]
[1730757927034,7.87910582,2381.6,2381.5,0.0097128]
[1730757927238,0.68025582,2381.6,2381.5,0.0097128]
[1730757927543,4.98409141,2381.6,2381.5,0.0097128]
[1730757927748,4.87910582,2381.6,2381.5,0.0097128]
[1730757927951,0.04175582,2381.6,2381.5,0.0097128]
[1730757928248,0.6385,2382.1,2381.8,4.19848]
[1730757928536,0.03960136,2382.0,2381.8,0.839733]
[1730757928727,0.03960136,2382.0,2381.7,4.19864]
[1730757928923,0.10495217,2382.2,2381.7,4.19864]
[1730757929239,4.19811,2382.1,2381.5,4.2086028]
[1730757929410,0.14458813,2382.0,2381.5,0.0097128]
[1730757930247,0.14484886,2381.8,2381.5,0.0097128]
[1730757930549,4.83735,2381.6,2381.5,0.0097128]
[1730757930848,7.98216946,2381.6,2381.5,0.0097128]
[1730757931051,8.54216946,2381.6,2381.5,0.0097128]
[1730757931359,8.54216946,2381.6,2380.3,0.0597128]
[1730757931360,4.83897,2380.7,2380.3,0.0597128]
[1730757931653,0.14467818,2380.6,2380.3,0.0597128]
[1730757931947,0.14467818,2380.6,2380.3,4.2607428]
[1730757932150,0.22182226,2380.6,2380.3,0.0597128]
[1730757932327,0.22182226,2380.6,2380.3,4.2608528]
[1730757932522,0.22182226,2380.6,2380.3,0.0597128]
[1730757932937,4.20097,2380.4,2380.3,0.0597128]
[1730757933357,4.42239312,2380.4,2380.3,0.0597128]
[1730757933518,5.06089312,2380.4,2380.3,0.0597128]
[1730757934053,0.85992312,2380.4,2380.3,0.0597128]
[1730757934222,0.1163825,2380.4,2380.3,0.0597128]
[1730757934555,0.10503281,2380.5,2380.3,0.0597128]
[1730757934854,4.31719933,2380.4,2380.3,0.0597128]
[1730757935016,4.95569933,2380.4,2380.3,0.0597128]
[1730757935220,8.50569933,2380.4,2380.3,0.0597128]
[1730757935555,0.01,2380.2,2379.1,4.2628628]
[1730757935744,0.01,2380.2,2379.1,0.0597128]
[1730757935745,4.84115,2379.5,2379.1,0.0597128]
[1730757935941,0.10508684,2379.4,2379.2,4.20298]
[1730757936252,0.11612152,2379.3,2379.1,0.0597128]
[1730757936419,0.10508068,2379.2,2379.1,0.0597128]
[1730757936914,4.4242922,2379.2,2379.1,0.0597128]
[1730757937283,5.06234375,2379.2,2379.1,0.0597128]
[1730757937792,8.06234375,2379.2,2379.1,0.0597128]
[1730757938556,0.22075375,2379.2,2379.1,0.0597128]
[1730757938762,0.11567307,2379.2,2379.1,0.48602708]
[1730757938956,0.1050739,2379.5,2379.3,4.20281]
[1730757939163,0.10507329,2379.8,2379.3,8.4056]
[1730757939393,0.11363504,2379.4,2379.3,4.20279]
[1730757939602,0.6385,2379.9,2379.3,0.88919171]
[1730757939752,0.11379413,2379.4,2379.3,4.20291]
[1730757939947,0.10505792,2379.8,2379.6,8.40472]
[1730757940297,0.11379413,2379.7,2379.5,4.20251]
[1730757940454,0.10505792,2379.8,2379.5,4.20251]
[1730757940658,0.1139759,2379.7,2379.5,4.20251]
[1730757941010,0.10505792,2379.8,2379.5,4.20251]
[1730757941181,0.1139759,2379.6,2379.5,4.20251]
[1730757941382,0.10505792,2379.8,2379.5,4.20251]
[1730757941799,0.1139759,2379.7,2379.5,4.20251]
[1730757942210,0.10506192,2379.8,2379.5,0.840517]
[1730757942376,0.10506192,2379.8,2379.1,0.0597128]
[1730757942377,4.3164859,2379.6,2379.1,0.0597128]
[1730757942578,0.10507663,2379.5,2379.1,0.0597128]
[1730757942805,0.2191945,2379.5,2379.1,0.0597128]
[1730757943017,0.2191945,2379.5,2379.1,4.2628228]
[1730757943181,0.2191945,2379.5,2379.1,0.0597128]
[1730757943510,4.4217945,2379.5,2379.1,0.0597128]
[1730757943912,0.2191945,2379.5,2379.1,0.0597128]
[1730757944217,4.4218445,2379.5,2379.1,0.0597128]
[1730757944377,0.6385,2379.4,2379.1,0.0597128]
[1730757944737,0.21914411,2379.3,2379.1,0.0597128]
[1730757944915,4.42208411,2379.3,2379.1,0.0597128]
[1730757945205,4.20309,2379.2,2379.1,0.0597128]
[1730757945571,4.31705454,2379.2,2379.1,0.0597128]
[1730757946248,0.11396454,2379.2,2379.1,0.0597128]
[1730757946422,4.30818821,2379.2,2379.1,0.0597128]
[1730757946900,0.21906275,2379.2,2379.1,0.0597128]
[1730757947300,0.11396454,2379.2,2379.1,4.2629828]
[1730757947521,0.10508941,2379.4,2379.1,5.02901509]
[1730757947700,0.1050819,2379.6,2379.1,0.82574509]
[1730757948041,0.74357191,2380.0,2379.5,4.20256]
[1730757948190,0.74357191,2380.0,2379.6,4.20226]
[1730757948703,4.94536191,2380.0,2379.4,4.20269]
[1730757948916,4.20186,2379.9,2379.4,4.20269]
[1730757949199,0.74357191,2380.0,2379.1,3.0597128]
[1730757949200,4.20239,2379.6,2379.1,0.0597128]
[1730757949400,0.74358212,2379.5,2379.1,0.0597128]
[1730757949639,4.20275,2379.4,2379.1,0.0597128]
[1730757949836,0.10508211,2379.3,2379.1,4.2629628]
[1730757949989,0.10508211,2379.3,2379.1,0.0597128]
[1730757950394,4.30801211,2379.3,2379.1,0.0597128]
[1730757950825,0.10508211,2379.3,2379.1,0.0597128]
[1730757951194,0.10508688,2379.5,2379.1,0.0597128]
[1730757951527,4.84067,2379.8,2379.3,4.20287]
[1730757951693,4.3073732,2379.7,2379.2,4.20299]
[1730757952331,4.3073732,2379.7,2379.1,4.2628528]